Workbook

Sheet يناير
A1: يناير
A2: المبيعات عبر الإنترنت | C2: معرف المزاد | D2: وصف العنصر | E2: سعر الشراء | F2: سعر البيع | G2: رسوم الإنترنت | H2: رسوم PayPal | I2: رسوم بطاقات الائتمان | J2: مصاريف الشحن | K2: رسوم الشحن | L2: معدل الربح/الخسارة للمبيعات | M2: معدل الربح/الخسارة للشحن | N2: إجمالي الربح/الخسارة
A3: سنة | C3: TS001 | D3: العنصر 1 | E3: 5 | F3: 4 | G3: 2 | H3: 1.5 | I3: 0 | J3: 4 | K3: 2 | L3: =IFERROR(JanuarySales[سعر البيع]-(JanuarySales[سعر الشراء]+JanuarySales[رسوم الإنترنت]+JanuarySales[رسوم PayPal]+JanuarySales[رسوم بطاقات الائتمان]),"") -> -4.5 | M3: =JanuarySales[مصاريف الشحن]-JanuarySales[رسوم الشحن] -> 2 | N3: =JanuarySales[معدل الربح/الخسارة للمبيعات]+JanuarySales[معدل الربح/الخسارة للشحن] -> -2.5
A4: 2012 | C4: TP004 | D4: العنصر 2 | E4: 2 | F4: 30 | G4: 0.5 | H4: 0.5 | J4: 4 | K4: 5.5 | L4: =IFERROR(JanuarySales[سعر البيع]-(JanuarySales[سعر الشراء]+JanuarySales[رسوم الإنترنت]+JanuarySales[رسوم PayPal]+JanuarySales[رسوم بطاقات الائتمان]),"") -> 27 | M4: =JanuarySales[مصاريف الشحن]-JanuarySales[رسوم الشحن] -> -1.5 | N4: =JanuarySales[معدل الربح/الخسارة للمبيعات]+JanuarySales[معدل الربح/الخسارة للشحن] -> 25.5
C5: RS99 | D5: العنصر 3 | E5: 17 | F5: 23 | G5: 2 | I5: 2 | J5: 3 | K5: 2 | L5: =IFERROR(JanuarySales[سعر البيع]-(JanuarySales[سعر الشراء]+JanuarySales[رسوم الإنترنت]+JanuarySales[رسوم PayPal]+JanuarySales[رسوم بطاقات الائتمان]),"") -> 2 | M5: =JanuarySales[مصاريف الشحن]-JanuarySales[رسوم الشحن] -> 1 | N5: =JanuarySales[معدل الربح/الخسارة للمبيعات]+JanuarySales[معدل الربح/الخسارة للشحن] -> 3
A6: إجمالي الربح/الخسارة | C6: ST001 | D6: العنصر 4 | E6: 120 | F6: 180 | G6: 2 | H6: 1.5 | J6: 3 | K6: 2 | L6: =IFERROR(JanuarySales[سعر البيع]-(JanuarySales[سعر الشراء]+JanuarySales[رسوم الإنترنت]+JanuarySales[رسوم PayPal]+JanuarySales[رسوم بطاقات الائتمان]),"") -> 56.5 | M6: =JanuarySales[مصاريف الشحن]-JanuarySales[رسوم الشحن] -> 1 | N6: =JanuarySales[معدل الربح/الخسارة للمبيعات]+JanuarySales[معدل الربح/الخسارة للشحن] -> 57.5
A7: =JanuarySales[[#Totals],[إجمالي الربح/الخسارة]] -> 89 | C7: ST001 | D7: العنصر 5 | E7: 10 | F7: 12 | G7: 2 | H7: 1.5 | J7: 14 | K7: 7 | L7: =IFERROR(JanuarySales[سعر البيع]-(JanuarySales[سعر الشراء]+JanuarySales[رسوم الإنترنت]+JanuarySales[رسوم PayPal]+JanuarySales[رسوم بطاقات الائتمان]),"") -> -1.5 | M7: =JanuarySales[مصاريف الشحن]-JanuarySales[رسوم الشحن] -> 7 | N7: =JanuarySales[معدل الربح/الخسارة للمبيعات]+JanuarySales[معدل الربح/الخسارة للشحن] -> 5.5
C8: الإجمالي | D8: ="العناصر المبيع: "&SUBTOTAL(103,FebruarySales[وصف العنصر]) -> العناصر المبيع: 5 | E8: =SUBTOTAL(109,JanuarySales[سعر الشراء]) -> 154 | F8: =SUBTOTAL(109,JanuarySales[سعر البيع]) -> 249 | G8: =SUBTOTAL(109,JanuarySales[رسوم الإنترنت]) -> 8.5 | H8: =SUBTOTAL(109,JanuarySales[رسوم PayPal]) -> 5 | I8: =SUBTOTAL(109,JanuarySales[رسوم بطاقات الائتمان]) -> 2 | J8: =SUBTOTAL(109,JanuarySales[مصاريف الشحن]) -> 28 | K8: =SUBTOTAL(109,JanuarySales[رسوم الشحن]) -> 18.5 | L8: =SUBTOTAL(109,JanuarySales[معدل الربح/الخسارة للمبيعات]) -> 79.5 | M8: =SUBTOTAL(109,JanuarySales[معدل الربح/الخسارة للشحن]) -> 9.5 | N8: =SUBTOTAL(109,JanuarySales[إجمالي الربح/الخسارة]) -> 89
A9: اتجاه الربح/الخسارة

Sheet فبراير
A1: فبراير
A2: المبيعات عبر الإنترنت | C2: معرف المزاد | D2: وصف العنصر | E2: سعر الشراء | F2: سعر البيع | G2: رسوم الإنترنت | H2: رسوم PayPal | I2: رسوم بطاقات الائتمان | J2: مصاريف الشحن | K2: رسوم الشحن | L2: معدل الربح/الخسارة للمبيعات | M2: معدل الربح/الخسارة للشحن | N2: إجمالي الربح/الخسارة
A3: سنة | C3: TS020 | D3: العنصر 1 | E3: 10 | F3: 175 | G3: 3 | H3: 1.5 | I3: 0 | J3: 7 | K3: 5 | L3: =IFERROR(FebruarySales[سعر البيع]-(FebruarySales[سعر الشراء]+FebruarySales[رسوم الإنترنت]+FebruarySales[رسوم PayPal]+FebruarySales[رسوم بطاقات الائتمان]),"") -> 160.5 | M3: =FebruarySales[مصاريف الشحن]-FebruarySales[رسوم الشحن] -> 2 | N3: =FebruarySales[معدل الربح/الخسارة للمبيعات]+FebruarySales[معدل الربح/الخسارة للشحن] -> 162.5
A4: =SalesYear -> 2012 | C4: TS021 | D4: العنصر 2 | E4: 32 | F4: 100 | G4: 3 | I4: 3.2 | J4: 20 | K4: 13 | L4: =IFERROR(FebruarySales[سعر البيع]-(FebruarySales[سعر الشراء]+FebruarySales[رسوم الإنترنت]+FebruarySales[رسوم PayPal]+FebruarySales[رسوم بطاقات الائتمان]),"") -> 61.8 | M4: =FebruarySales[مصاريف الشحن]-FebruarySales[رسوم الشحن] -> 7 | N4: =FebruarySales[معدل الربح/الخسارة للمبيعات]+FebruarySales[معدل الربح/الخسارة للشحن] -> 68.8
C5: TS022 | D5: العنصر 3 | E5: 3 | F5: 7 | G5: 2 | I5: 2 | J5: 0.5 | K5: 1.2 | L5: =IFERROR(FebruarySales[سعر البيع]-(FebruarySales[سعر الشراء]+FebruarySales[رسوم الإنترنت]+FebruarySales[رسوم PayPal]+FebruarySales[رسوم بطاقات الائتمان]),"") -> 0 | M5: =FebruarySales[مصاريف الشحن]-FebruarySales[رسوم الشحن] -> -0.7 | N5: =FebruarySales[معدل الربح/الخسارة للمبيعات]+FebruarySales[معدل الربح/الخسارة للشحن] -> -0.7
A6: إجمالي الربح/الخسارة | C6: TS023 | D6: العنصر 4 | E6: 22 | F6: 18 | G6: 3 | H6: 1.5 | J6: 7 | K6: 10 | L6: =IFERROR(FebruarySales[سعر البيع]-(FebruarySales[سعر الشراء]+FebruarySales[رسوم الإنترنت]+FebruarySales[رسوم PayPal]+FebruarySales[رسوم بطاقات الائتمان]),"") -> -8.5 | M6: =FebruarySales[مصاريف الشحن]-FebruarySales[رسوم الشحن] -> -3 | N6: =FebruarySales[معدل الربح/الخسارة للمبيعات]+FebruarySales[معدل الربح/الخسارة للشحن] -> -11.5
A7: =FebruarySales[[#Totals],[إجمالي الربح/الخسارة]] -> 224.6 | C7: TS024 | D7: العنصر 5 | E7: 10 | F7: 12 | G7: 2 | H7: 1.5 | J7: 14 | K7: 7 | L7: =IFERROR(FebruarySales[سعر البيع]-(FebruarySales[سعر الشراء]+FebruarySales[رسوم الإنترنت]+FebruarySales[رسوم PayPal]+FebruarySales[رسوم بطاقات الائتمان]),"") -> -1.5 | M7: =FebruarySales[مصاريف الشحن]-FebruarySales[رسوم الشحن] -> 7 | N7: =FebruarySales[معدل الربح/الخسارة للمبيعات]+FebruarySales[معدل الربح/الخسارة للشحن] -> 5.5
C8: الإجمالي | D8: ="العناصر المبيع: "&SUBTOTAL(103,FebruarySales[وصف العنصر]) -> العناصر المبيع: 5 | E8: =SUBTOTAL(109,FebruarySales[سعر الشراء]) -> 77 | F8: =SUBTOTAL(109,FebruarySales[سعر البيع]) -> 312 | G8: =SUBTOTAL(109,FebruarySales[رسوم الإنترنت]) -> 13 | H8: =SUBTOTAL(109,FebruarySales[رسوم PayPal]) -> 4.5 | I8: =SUBTOTAL(109,FebruarySales[رسوم بطاقات الائتمان]) -> 5.2 | J8: =SUBTOTAL(109,FebruarySales[مصاريف الشحن]) -> 48.5 | K8: =SUBTOTAL(109,FebruarySales[رسوم الشحن]) -> 36.2 | L8: =SUBTOTAL(109,FebruarySales[معدل الربح/الخسارة للمبيعات]) -> 212.3 | M8: =SUBTOTAL(109,FebruarySales[معدل الربح/الخسارة للشحن]) -> 12.3 | N8: =SUBTOTAL(109,FebruarySales[إجمالي الربح/الخسارة]) -> 224.6
A9: اتجاه الربح/الخسارة

Sheet مارس
A1: مارس
A2: المبيعات عبر الإنترنت | C2: معرف المزاد | D2: وصف العنصر | E2: سعر الشراء | F2: سعر البيع | G2: رسوم الإنترنت | H2: رسوم PayPal | I2: رسوم بطاقات الائتمان | J2: مصاريف الشحن | K2: رسوم الشحن | L2: معدل الربح/الخسارة للمبيعات | M2: معدل الربح/الخسارة للشحن | N2: إجمالي الربح/الخسارة
A3: سنة | M3: =MarchSales[مصاريف الشحن]-MarchSales[رسوم الشحن] -> 0 | N3: =MarchSales[معدل الربح/الخسارة للمبيعات]+MarchSales[معدل الربح/الخسارة للشحن] -> 0
A4: =SalesYear -> 2012 | M4: =MarchSales[مصاريف الشحن]-MarchSales[رسوم الشحن] -> 0 | N4: =MarchSales[معدل الربح/الخسارة للمبيعات]+MarchSales[معدل الربح/الخسارة للشحن] -> 0
M5: =MarchSales[مصاريف الشحن]-MarchSales[رسوم الشحن] -> 0 | N5: =MarchSales[معدل الربح/الخسارة للمبيعات]+MarchSales[معدل الربح/الخسارة للشحن] -> 0
A6: إجمالي الربح/الخسارة | M6: =MarchSales[مصاريف الشحن]-MarchSales[رسوم الشحن] -> 0 | N6: =MarchSales[معدل الربح/الخسارة للمبيعات]+MarchSales[معدل الربح/الخسارة للشحن] -> 0
A7: =MarchSales[[#Totals],[إجمالي الربح/الخسارة]] -> 0 | M7: =MarchSales[مصاريف الشحن]-MarchSales[رسوم الشحن] -> 0 | N7: =MarchSales[معدل الربح/الخسارة للمبيعات]+MarchSales[معدل الربح/الخسارة للشحن] -> 0
C8: الإجمالي | D8: ="العناصر المبيعة: "&SUBTOTAL(103,MarchSales[وصف العنصر]) -> العناصر المبيعة: 0 | E8: =SUBTOTAL(109,MarchSales[سعر الشراء]) -> 0 | F8: =SUBTOTAL(109,MarchSales[سعر البيع]) -> 0 | G8: =SUBTOTAL(109,MarchSales[رسوم الإنترنت]) -> 0 | H8: =SUBTOTAL(109,MarchSales[رسوم PayPal]) -> 0 | I8: =SUBTOTAL(109,MarchSales[رسوم بطاقات الائتمان]) -> 0 | J8: =SUBTOTAL(109,MarchSales[مصاريف الشحن]) -> 0 | K8: =SUBTOTAL(109,MarchSales[رسوم الشحن]) -> 0 | L8: =SUBTOTAL(109,MarchSales[معدل الربح/الخسارة للمبيعات]) -> 0 | M8: =SUBTOTAL(109,MarchSales[معدل الربح/الخسارة للشحن]) -> 0 | N8: =SUBTOTAL(109,MarchSales[إجمالي الربح/الخسارة]) -> 0
A9: اتجاه الربح/الخسارة

Sheet أبريل
A1: أبريل
A2: المبيعات عبر الإنترنت | C2: معرف المزاد | D2: وصف العنصر | E2: سعر الشراء | F2: سعر البيع | G2: رسوم الإنترنت | H2: رسوم PayPal | I2: رسوم بطاقات الائتمان | J2: مصاريف الشحن | K2: رسوم الشحن | L2: معدل الربح/الخسارة للمبيعات | M2: معدل الربح/الخسارة للشحن | N2: إجمالي الربح/الخسارة
A3: سنة | M3: =AprilSales[مصاريف الشحن]-AprilSales[رسوم الشحن] -> 0 | N3: =AprilSales[معدل الربح/الخسارة للمبيعات]+AprilSales[معدل الربح/الخسارة للشحن] -> 0
A4: =SalesYear -> 2012 | M4: =AprilSales[مصاريف الشحن]-AprilSales[رسوم الشحن] -> 0 | N4: =AprilSales[معدل الربح/الخسارة للمبيعات]+AprilSales[معدل الربح/الخسارة للشحن] -> 0
M5: =AprilSales[مصاريف الشحن]-AprilSales[رسوم الشحن] -> 0 | N5: =AprilSales[معدل الربح/الخسارة للمبيعات]+AprilSales[معدل الربح/الخسارة للشحن] -> 0
A6: إجمالي الربح/الخسارة | M6: =AprilSales[مصاريف الشحن]-AprilSales[رسوم الشحن] -> 0 | N6: =AprilSales[معدل الربح/الخسارة للمبيعات]+AprilSales[معدل الربح/الخسارة للشحن] -> 0
A7: =AprilSales[[#Totals],[إجمالي الربح/الخسارة]] -> 0 | M7: =AprilSales[مصاريف الشحن]-AprilSales[رسوم الشحن] -> 0 | N7: =AprilSales[معدل الربح/الخسارة للمبيعات]+AprilSales[معدل الربح/الخسارة للشحن] -> 0
C8: الإجمالي | D8: ="العناصر المبيعة: "&SUBTOTAL(103,AprilSales[وصف العنصر]) -> العناصر المبيعة: 0 | E8: =SUBTOTAL(109,AprilSales[سعر الشراء]) -> 0 | F8: =SUBTOTAL(109,AprilSales[سعر البيع]) -> 0 | G8: =SUBTOTAL(109,AprilSales[رسوم الإنترنت]) -> 0 | H8: =SUBTOTAL(109,AprilSales[رسوم PayPal]) -> 0 | I8: =SUBTOTAL(109,AprilSales[رسوم بطاقات الائتمان]) -> 0 | J8: =SUBTOTAL(109,AprilSales[مصاريف الشحن]) -> 0 | K8: =SUBTOTAL(109,AprilSales[رسوم الشحن]) -> 0 | L8: =SUBTOTAL(109,AprilSales[معدل الربح/الخسارة للمبيعات]) -> 0 | M8: =SUBTOTAL(109,AprilSales[معدل الربح/الخسارة للشحن]) -> 0 | N8: =SUBTOTAL(109,AprilSales[إجمالي الربح/الخسارة]) -> 0
A9: اتجاه الربح/الخسارة

Sheet مايو
A1: مايو
A2: المبيعات عبر الإنترنت | C2: معرف المزاد | D2: وصف العنصر | E2: سعر الشراء | F2: سعر البيع | G2: رسوم الإنترنت | H2: رسوم PayPal | I2: رسوم بطاقات الائتمان | J2: مصاريف الشحن | K2: رسوم الشحن | L2: معدل الربح/الخسارة للمبيعات | M2: معدل الربح/الخسارة للشحن | N2: إجمالي الربح/الخسارة
A3: سنة | M3: =MaySales[مصاريف الشحن]-MaySales[رسوم الشحن] -> 0 | N3: =MaySales[معدل الربح/الخسارة للمبيعات]+MaySales[معدل الربح/الخسارة للشحن] -> 0
A4: =SalesYear -> 2012 | M4: =MaySales[مصاريف الشحن]-MaySales[رسوم الشحن] -> 0 | N4: =MaySales[معدل الربح/الخسارة للمبيعات]+MaySales[معدل الربح/الخسارة للشحن] -> 0
M5: =MaySales[مصاريف الشحن]-MaySales[رسوم الشحن] -> 0 | N5: =MaySales[معدل الربح/الخسارة للمبيعات]+MaySales[معدل الربح/الخسارة للشحن] -> 0
A6: إجمالي الربح/الخسارة | M6: =MaySales[مصاريف الشحن]-MaySales[رسوم الشحن] -> 0 | N6: =MaySales[معدل الربح/الخسارة للمبيعات]+MaySales[معدل الربح/الخسارة للشحن] -> 0
A7: =MaySales[[#Totals],[إجمالي الربح/الخسارة]] -> 0 | M7: =MaySales[مصاريف الشحن]-MaySales[رسوم الشحن] -> 0 | N7: =MaySales[معدل الربح/الخسارة للمبيعات]+MaySales[معدل الربح/الخسارة للشحن] -> 0
C8: الإجمالي | D8: ="العناصر المبيعة: "&SUBTOTAL(103,MaySales[وصف العنصر]) -> العناصر المبيعة: 0 | E8: =SUBTOTAL(109,MaySales[سعر الشراء]) -> 0 | F8: =SUBTOTAL(109,MaySales[سعر البيع]) -> 0 | G8: =SUBTOTAL(109,MaySales[رسوم الإنترنت]) -> 0 | H8: =SUBTOTAL(109,MaySales[رسوم PayPal]) -> 0 | I8: =SUBTOTAL(109,MaySales[رسوم بطاقات الائتمان]) -> 0 | J8: =SUBTOTAL(109,MaySales[مصاريف الشحن]) -> 0 | K8: =SUBTOTAL(109,MaySales[رسوم الشحن]) -> 0 | L8: =SUBTOTAL(109,MaySales[معدل الربح/الخسارة للمبيعات]) -> 0 | M8: =SUBTOTAL(109,MaySales[معدل الربح/الخسارة للشحن]) -> 0 | N8: =SUBTOTAL(109,MaySales[إجمالي الربح/الخسارة]) -> 0
A9: اتجاه الربح/الخسارة

Sheet يونيو
A1: يونيو
A2: المبيعات عبر الإنترنت | C2: معرف المزاد | D2: وصف العنصر | E2: سعر الشراء | F2: سعر البيع | G2: رسوم الإنترنت | H2: رسوم PayPal | I2: رسوم بطاقات الائتمان | J2: مصاريف الشحن | K2: رسوم الشحن | L2: معدل الربح/الخسارة للمبيعات | M2: معدل الربح/الخسارة للشحن | N2: إجمالي الربح/الخسارة
A3: سنة | M3: =JuneSales[مصاريف الشحن]-JuneSales[رسوم الشحن] -> 0 | N3: =JuneSales[معدل الربح/الخسارة للمبيعات]+JuneSales[معدل الربح/الخسارة للشحن] -> 0
A4: =SalesYear -> 2012 | M4: =JuneSales[مصاريف الشحن]-JuneSales[رسوم الشحن] -> 0 | N4: =JuneSales[معدل الربح/الخسارة للمبيعات]+JuneSales[معدل الربح/الخسارة للشحن] -> 0
M5: =JuneSales[مصاريف الشحن]-JuneSales[رسوم الشحن] -> 0 | N5: =JuneSales[معدل الربح/الخسارة للمبيعات]+JuneSales[معدل الربح/الخسارة للشحن] -> 0
A6: إجمالي الربح/الخسارة | M6: =JuneSales[مصاريف الشحن]-JuneSales[رسوم الشحن] -> 0 | N6: =JuneSales[معدل الربح/الخسارة للمبيعات]+JuneSales[معدل الربح/الخسارة للشحن] -> 0
A7: =JuneSales[[#Totals],[إجمالي الربح/الخسارة]] -> 0 | M7: =JuneSales[مصاريف الشحن]-JuneSales[رسوم الشحن] -> 0 | N7: =JuneSales[معدل الربح/الخسارة للمبيعات]+JuneSales[معدل الربح/الخسارة للشحن] -> 0
C8: الإجمالي | D8: ="العناصر المبيعة: "&SUBTOTAL(103,JuneSales[وصف العنصر]) -> العناصر المبيعة: 0 | E8: =SUBTOTAL(109,JuneSales[سعر الشراء]) -> 0 | F8: =SUBTOTAL(109,JuneSales[سعر البيع]) -> 0 | G8: =SUBTOTAL(109,JuneSales[رسوم الإنترنت]) -> 0 | H8: =SUBTOTAL(109,JuneSales[رسوم PayPal]) -> 0 | I8: =SUBTOTAL(109,JuneSales[رسوم بطاقات الائتمان]) -> 0 | J8: =SUBTOTAL(109,JuneSales[مصاريف الشحن]) -> 0 | K8: =SUBTOTAL(109,JuneSales[رسوم الشحن]) -> 0 | L8: =SUBTOTAL(109,JuneSales[معدل الربح/الخسارة للمبيعات]) -> 0 | M8: =SUBTOTAL(109,JuneSales[معدل الربح/الخسارة للشحن]) -> 0 | N8: =SUBTOTAL(109,JuneSales[إجمالي الربح/الخسارة]) -> 0
A9: اتجاه الربح/الخسارة

Sheet يوليو
A1: يوليو
A2: المبيعات عبر الإنترنت | C2: معرف المزاد | D2: وصف العنصر | E2: سعر الشراء | F2: سعر البيع | G2: رسوم الإنترنت | H2: رسوم PayPal | I2: رسوم بطاقات الائتمان | J2: مصاريف الشحن | K2: رسوم الشحن | L2: معدل الربح/الخسارة للمبيعات | M2: معدل الربح/الخسارة للشحن | N2: إجمالي الربح/الخسارة
A3: سنة | M3: =JulySales[مصاريف الشحن]-JulySales[رسوم الشحن] -> 0 | N3: =JulySales[معدل الربح/الخسارة للمبيعات]+JulySales[معدل الربح/الخسارة للشحن] -> 0
A4: =SalesYear -> 2012 | M4: =JulySales[مصاريف الشحن]-JulySales[رسوم الشحن] -> 0 | N4: =JulySales[معدل الربح/الخسارة للمبيعات]+JulySales[معدل الربح/الخسارة للشحن] -> 0
M5: =JulySales[مصاريف الشحن]-JulySales[رسوم الشحن] -> 0 | N5: =JulySales[معدل الربح/الخسارة للمبيعات]+JulySales[معدل الربح/الخسارة للشحن] -> 0
A6: إجمالي الربح/الخسارة | M6: =JulySales[مصاريف الشحن]-JulySales[رسوم الشحن] -> 0 | N6: =JulySales[معدل الربح/الخسارة للمبيعات]+JulySales[معدل الربح/الخسارة للشحن] -> 0
A7: =JulySales[[#Totals],[إجمالي الربح/الخسارة]] -> 0 | M7: =JulySales[مصاريف الشحن]-JulySales[رسوم الشحن] -> 0 | N7: =JulySales[معدل الربح/الخسارة للمبيعات]+JulySales[معدل الربح/الخسارة للشحن] -> 0
C8: الإجمالي | D8: ="العناصر المبيعة: "&SUBTOTAL(103,JulySales[وصف العنصر]) -> العناصر المبيعة: 0 | E8: =SUBTOTAL(109,JulySales[سعر الشراء]) -> 0 | F8: =SUBTOTAL(109,JulySales[سعر البيع]) -> 0 | G8: =SUBTOTAL(109,JulySales[رسوم الإنترنت]) -> 0 | H8: =SUBTOTAL(109,JulySales[رسوم PayPal]) -> 0 | I8: =SUBTOTAL(109,JulySales[رسوم بطاقات الائتمان]) -> 0 | J8: =SUBTOTAL(109,JulySales[مصاريف الشحن]) -> 0 | K8: =SUBTOTAL(109,JulySales[رسوم الشحن]) -> 0 | L8: =SUBTOTAL(109,JulySales[معدل الربح/الخسارة للمبيعات]) -> 0 | M8: =SUBTOTAL(109,JulySales[معدل الربح/الخسارة للشحن]) -> 0 | N8: =SUBTOTAL(109,JulySales[إجمالي الربح/الخسارة]) -> 0
A9: اتجاه الربح/الخسارة

Sheet أغسطس
A1: أغسطس
A2: المبيعات عبر الإنترنت | C2: معرف المزاد | D2: وصف العنصر | E2: سعر الشراء | F2: سعر البيع | G2: رسوم الإنترنت | H2: رسوم PayPal | I2: رسوم بطاقات الائتمان | J2: مصاريف الشحن | K2: رسوم الشحن | L2: معدل الربح/الخسارة للمبيعات | M2: معدل الربح/الخسارة للشحن | N2: إجمالي الربح/الخسارة
A3: سنة | M3: =AugustSales[مصاريف الشحن]-AugustSales[رسوم الشحن] -> 0 | N3: =AugustSales[معدل الربح/الخسارة للمبيعات]+AugustSales[معدل الربح/الخسارة للشحن] -> 0
A4: =SalesYear -> 2012 | M4: =AugustSales[مصاريف الشحن]-AugustSales[رسوم الشحن] -> 0 | N4: =AugustSales[معدل الربح/الخسارة للمبيعات]+AugustSales[معدل الربح/الخسارة للشحن] -> 0
M5: =AugustSales[مصاريف الشحن]-AugustSales[رسوم الشحن] -> 0 | N5: =AugustSales[معدل الربح/الخسارة للمبيعات]+AugustSales[معدل الربح/الخسارة للشحن] -> 0
A6: إجمالي الربح/الخسارة | M6: =AugustSales[مصاريف الشحن]-AugustSales[رسوم الشحن] -> 0 | N6: =AugustSales[معدل الربح/الخسارة للمبيعات]+AugustSales[معدل الربح/الخسارة للشحن] -> 0
A7: =AugustSales[[#Totals],[إجمالي الربح/الخسارة]] -> 0 | M7: =AugustSales[مصاريف الشحن]-AugustSales[رسوم الشحن] -> 0 | N7: =AugustSales[معدل الربح/الخسارة للمبيعات]+AugustSales[معدل الربح/الخسارة للشحن] -> 0
C8: الإجمالي | D8: ="العناصر المبيعة: "&SUBTOTAL(103,AugustSales[وصف العنصر]) -> العناصر المبيعة: 0 | E8: =SUBTOTAL(109,AugustSales[سعر الشراء]) -> 0 | F8: =SUBTOTAL(109,AugustSales[سعر البيع]) -> 0 | G8: =SUBTOTAL(109,AugustSales[رسوم الإنترنت]) -> 0 | H8: =SUBTOTAL(109,AugustSales[رسوم PayPal]) -> 0 | I8: =SUBTOTAL(109,AugustSales[رسوم بطاقات الائتمان]) -> 0 | J8: =SUBTOTAL(109,AugustSales[مصاريف الشحن]) -> 0 | K8: =SUBTOTAL(109,AugustSales[رسوم الشحن]) -> 0 | L8: =SUBTOTAL(109,AugustSales[معدل الربح/الخسارة للمبيعات]) -> 0 | M8: =SUBTOTAL(109,AugustSales[معدل الربح/الخسارة للشحن]) -> 0 | N8: =SUBTOTAL(109,AugustSales[إجمالي الربح/الخسارة]) -> 0
A9: اتجاه الربح/الخسارة

Sheet سبتمبر
A1: سبتمبر
A2: المبيعات عبر الإنترنت | C2: معرف المزاد | D2: وصف العنصر | E2: سعر الشراء | F2: سعر البيع | G2: رسوم الإنترنت | H2: رسوم PayPal | I2: رسوم بطاقات الائتمان | J2: مصاريف الشحن | K2: رسوم الشحن | L2: معدل الربح/الخسارة للمبيعات | M2: معدل الربح/الخسارة للشحن | N2: إجمالي الربح/الخسارة
A3: سنة | M3: =SeptemberSales[مصاريف الشحن]-SeptemberSales[رسوم الشحن] -> 0 | N3: =SeptemberSales[معدل الربح/الخسارة للمبيعات]+SeptemberSales[معدل الربح/الخسارة للشحن] -> 0
A4: =SalesYear -> 2012 | M4: =SeptemberSales[مصاريف الشحن]-SeptemberSales[رسوم الشحن] -> 0 | N4: =SeptemberSales[معدل الربح/الخسارة للمبيعات]+SeptemberSales[معدل الربح/الخسارة للشحن] -> 0
M5: =SeptemberSales[مصاريف الشحن]-SeptemberSales[رسوم الشحن] -> 0 | N5: =SeptemberSales[معدل الربح/الخسارة للمبيعات]+SeptemberSales[معدل الربح/الخسارة للشحن] -> 0
A6: إجمالي الربح/الخسارة | M6: =SeptemberSales[مصاريف الشحن]-SeptemberSales[رسوم الشحن] -> 0 | N6: =SeptemberSales[معدل الربح/الخسارة للمبيعات]+SeptemberSales[معدل الربح/الخسارة للشحن] -> 0
A7: =SeptemberSales[[#Totals],[إجمالي الربح/الخسارة]] -> 0 | M7: =SeptemberSales[مصاريف الشحن]-SeptemberSales[رسوم الشحن] -> 0 | N7: =SeptemberSales[معدل الربح/الخسارة للمبيعات]+SeptemberSales[معدل الربح/الخسارة للشحن] -> 0
C8: الإجمالي | D8: ="العناصر المبيعة: "&SUBTOTAL(103,SeptemberSales[وصف العنصر]) -> العناصر المبيعة: 0 | E8: =SUBTOTAL(109,SeptemberSales[سعر الشراء]) -> 0 | F8: =SUBTOTAL(109,SeptemberSales[سعر البيع]) -> 0 | G8: =SUBTOTAL(109,SeptemberSales[رسوم الإنترنت]) -> 0 | H8: =SUBTOTAL(109,SeptemberSales[رسوم PayPal]) -> 0 | I8: =SUBTOTAL(109,SeptemberSales[رسوم بطاقات الائتمان]) -> 0 | J8: =SUBTOTAL(109,SeptemberSales[مصاريف الشحن]) -> 0 | K8: =SUBTOTAL(109,SeptemberSales[رسوم الشحن]) -> 0 | L8: =SUBTOTAL(109,SeptemberSales[معدل الربح/الخسارة للمبيعات]) -> 0 | M8: =SUBTOTAL(109,SeptemberSales[معدل الربح/الخسارة للشحن]) -> 0 | N8: =SUBTOTAL(109,SeptemberSales[إجمالي الربح/الخسارة]) -> 0
A9: اتجاه الربح/الخسارة

Sheet أكتوبر
A1: أكتوبر
A2: المبيعات عبر الإنترنت | C2: معرف المزاد | D2: وصف العنصر | E2: سعر الشراء | F2: سعر البيع | G2: رسوم الإنترنت | H2: رسوم PayPal | I2: رسوم بطاقات الائتمان | J2: مصاريف الشحن | K2: رسوم الشحن | L2: معدل الربح/الخسارة للمبيعات | M2: معدل الربح/الخسارة للشحن | N2: إجمالي الربح/الخسارة
A3: سنة | M3: =OctoberSales[مصاريف الشحن]-OctoberSales[رسوم الشحن] -> 0 | N3: =OctoberSales[معدل الربح/الخسارة للمبيعات]+OctoberSales[معدل الربح/الخسارة للشحن] -> 0
A4: =SalesYear -> 2012 | M4: =OctoberSales[مصاريف الشحن]-OctoberSales[رسوم الشحن] -> 0 | N4: =OctoberSales[معدل الربح/الخسارة للمبيعات]+OctoberSales[معدل الربح/الخسارة للشحن] -> 0
M5: =OctoberSales[مصاريف الشحن]-OctoberSales[رسوم الشحن] -> 0 | N5: =OctoberSales[معدل الربح/الخسارة للمبيعات]+OctoberSales[معدل الربح/الخسارة للشحن] -> 0
A6: إجمالي الربح/الخسارة | M6: =OctoberSales[مصاريف الشحن]-OctoberSales[رسوم الشحن] -> 0 | N6: =OctoberSales[معدل الربح/الخسارة للمبيعات]+OctoberSales[معدل الربح/الخسارة للشحن] -> 0
A7: =OctoberSales[[#Totals],[إجمالي الربح/الخسارة]] -> 0 | M7: =OctoberSales[مصاريف الشحن]-OctoberSales[رسوم الشحن] -> 0 | N7: =OctoberSales[معدل الربح/الخسارة للمبيعات]+OctoberSales[معدل الربح/الخسارة للشحن] -> 0
C8: الإجمالي | D8: ="العناصر المبيعة: "&SUBTOTAL(103,OctoberSales[وصف العنصر]) -> العناصر المبيعة: 0 | E8: =SUBTOTAL(109,OctoberSales[سعر الشراء]) -> 0 | F8: =SUBTOTAL(109,OctoberSales[سعر البيع]) -> 0 | G8: =SUBTOTAL(109,OctoberSales[رسوم الإنترنت]) -> 0 | H8: =SUBTOTAL(109,OctoberSales[رسوم PayPal]) -> 0 | I8: =SUBTOTAL(109,OctoberSales[رسوم بطاقات الائتمان]) -> 0 | J8: =SUBTOTAL(109,OctoberSales[مصاريف الشحن]) -> 0 | K8: =SUBTOTAL(109,OctoberSales[رسوم الشحن]) -> 0 | L8: =SUBTOTAL(109,OctoberSales[معدل الربح/الخسارة للمبيعات]) -> 0 | M8: =SUBTOTAL(109,OctoberSales[معدل الربح/الخسارة للشحن]) -> 0 | N8: =SUBTOTAL(109,OctoberSales[إجمالي الربح/الخسارة]) -> 0
A9: اتجاه الربح/الخسارة

Sheet نوفمبر
A1: نوفمبر
A2: المبيعات عبر الإنترنت | C2: معرف المزاد | D2: وصف العنصر | E2: سعر الشراء | F2: سعر البيع | G2: رسوم الإنترنت | H2: رسوم PayPal | I2: رسوم بطاقات الائتمان | J2: مصاريف الشحن | K2: رسوم الشحن | L2: معدل الربح/الخسارة للمبيعات | M2: معدل الربح/الخسارة للشحن | N2: إجمالي الربح/الخسارة
A3: سنة | M3: =NovemberSales[مصاريف الشحن]-NovemberSales[رسوم الشحن] -> 0 | N3: =NovemberSales[معدل الربح/الخسارة للمبيعات]+NovemberSales[معدل الربح/الخسارة للشحن] -> 0
A4: =SalesYear -> 2012 | M4: =NovemberSales[مصاريف الشحن]-NovemberSales[رسوم الشحن] -> 0 | N4: =NovemberSales[معدل الربح/الخسارة للمبيعات]+NovemberSales[معدل الربح/الخسارة للشحن] -> 0
M5: =NovemberSales[مصاريف الشحن]-NovemberSales[رسوم الشحن] -> 0 | N5: =NovemberSales[معدل الربح/الخسارة للمبيعات]+NovemberSales[معدل الربح/الخسارة للشحن] -> 0
A6: إجمالي الربح/الخسارة | M6: =NovemberSales[مصاريف الشحن]-NovemberSales[رسوم الشحن] -> 0 | N6: =NovemberSales[معدل الربح/الخسارة للمبيعات]+NovemberSales[معدل الربح/الخسارة للشحن] -> 0
A7: =NovemberSales[[#Totals],[إجمالي الربح/الخسارة]] -> 0 | M7: =NovemberSales[مصاريف الشحن]-NovemberSales[رسوم الشحن] -> 0 | N7: =NovemberSales[معدل الربح/الخسارة للمبيعات]+NovemberSales[معدل الربح/الخسارة للشحن] -> 0
C8: الإجمالي | D8: ="العناصر المبيعة: "&SUBTOTAL(103,NovemberSales[وصف العنصر]) -> العناصر المبيعة: 0 | E8: =SUBTOTAL(109,NovemberSales[سعر الشراء]) -> 0 | F8: =SUBTOTAL(109,NovemberSales[سعر البيع]) -> 0 | G8: =SUBTOTAL(109,NovemberSales[رسوم الإنترنت]) -> 0 | H8: =SUBTOTAL(109,NovemberSales[رسوم PayPal]) -> 0 | I8: =SUBTOTAL(109,NovemberSales[رسوم بطاقات الائتمان]) -> 0 | J8: =SUBTOTAL(109,NovemberSales[مصاريف الشحن]) -> 0 | K8: =SUBTOTAL(109,NovemberSales[رسوم الشحن]) -> 0 | L8: =SUBTOTAL(109,NovemberSales[معدل الربح/الخسارة للمبيعات]) -> 0 | M8: =SUBTOTAL(109,NovemberSales[معدل الربح/الخسارة للشحن]) -> 0 | N8: =SUBTOTAL(109,NovemberSales[إجمالي الربح/الخسارة]) -> 0
A9: اتجاه الربح/الخسارة

Sheet ديسمبر
A1: ديسمبر
A2: المبيعات عبر الإنترنت | C2: معرف المزاد | D2: وصف العنصر | E2: سعر الشراء | F2: سعر البيع | G2: رسوم الإنترنت | H2: رسوم PayPal | I2: رسوم بطاقات الائتمان | J2: مصاريف الشحن | K2: رسوم الشحن | L2: معدل الربح/الخسارة للمبيعات | M2: معدل الربح/الخسارة للشحن | N2: إجمالي الربح/الخسارة
A3: سنة | M3: =DecemberSales[مصاريف الشحن]-DecemberSales[رسوم الشحن] -> 0 | N3: =DecemberSales[معدل الربح/الخسارة للمبيعات]+DecemberSales[معدل الربح/الخسارة للشحن] -> 0
A4: =SalesYear -> 2012 | M4: =DecemberSales[مصاريف الشحن]-DecemberSales[رسوم الشحن] -> 0 | N4: =DecemberSales[معدل الربح/الخسارة للمبيعات]+DecemberSales[معدل الربح/الخسارة للشحن] -> 0
M5: =DecemberSales[مصاريف الشحن]-DecemberSales[رسوم الشحن] -> 0 | N5: =DecemberSales[معدل الربح/الخسارة للمبيعات]+DecemberSales[معدل الربح/الخسارة للشحن] -> 0
A6: إجمالي الربح/الخسارة | M6: =DecemberSales[مصاريف الشحن]-DecemberSales[رسوم الشحن] -> 0 | N6: =DecemberSales[معدل الربح/الخسارة للمبيعات]+DecemberSales[معدل الربح/الخسارة للشحن] -> 0
A7: =DecemberSales[[#Totals],[إجمالي الربح/الخسارة]] -> 0 | M7: =DecemberSales[مصاريف الشحن]-DecemberSales[رسوم الشحن] -> 0 | N7: =DecemberSales[معدل الربح/الخسارة للمبيعات]+DecemberSales[معدل الربح/الخسارة للشحن] -> 0
C8: الإجمالي | D8: ="العناصر المبيعة:: "&SUBTOTAL(103,DecemberSales[وصف العنصر]) -> العناصر المبيعة:: 0 | E8: =SUBTOTAL(109,DecemberSales[سعر الشراء]) -> 0 | F8: =SUBTOTAL(109,DecemberSales[سعر البيع]) -> 0 | G8: =SUBTOTAL(109,DecemberSales[رسوم الإنترنت]) -> 0 | H8: =SUBTOTAL(109,DecemberSales[رسوم PayPal]) -> 0 | I8: =SUBTOTAL(109,DecemberSales[رسوم بطاقات الائتمان]) -> 0 | J8: =SUBTOTAL(109,DecemberSales[مصاريف الشحن]) -> 0 | K8: =SUBTOTAL(109,DecemberSales[رسوم الشحن]) -> 0 | L8: =SUBTOTAL(109,DecemberSales[معدل الربح/الخسارة للمبيعات]) -> 0 | M8: =SUBTOTAL(109,DecemberSales[معدل الربح/الخسارة للشحن]) -> 0 | N8: =SUBTOTAL(109,DecemberSales[إجمالي الربح/الخسارة]) -> 0
A9: اتجاه الربح/الخسارة

Sheet ملخص من بداية العام حتى اليوم
A1: الملخص من بداية السنة حتى اليوم
C2: الربح/الخسارة | H2: الربح/الخسارة من بداية حتى اليوم
A3: سنة | H3: الشهر | I3: معدل الربح/الخسارة للمبيعات | J3: معدل الربح/الخسارة للشحن | K3: إجمالي الربح/الخسارة
A4: =SalesYear -> 2012 | H4: يناير | I4: =JanuarySales[[#Totals],[معدل الربح/الخسارة للمبيعات]] -> 79.5 | J4: =JanuarySales[[#Totals],[معدل الربح/الخسارة للشحن]] -> 9.5 | K4: =IF(AND(YTDSummary[[#This Row],[معدل الربح/الخسارة للمبيعات]]<>"",YTDSummary[[#This Row],[معدل الربح/الخسارة للشحن]]<>""),YTDSummary[[#This Row],[معدل الربح/الخسارة للمبيعات]]+YTDSummary[[#This Row],[معدل الربح/الخسارة للشحن]],"") -> 89
H5: فبراير | I5: =FebruarySales[[#Totals],[معدل الربح/الخسارة للمبيعات]] -> 212.3 | J5: =FebruarySales[[#Totals],[معدل الربح/الخسارة للشحن]] -> 12.3 | K5: =IF(AND(YTDSummary[[#This Row],[معدل الربح/الخسارة للمبيعات]]<>"",YTDSummary[[#This Row],[معدل الربح/الخسارة للشحن]]<>""),YTDSummary[[#This Row],[معدل الربح/الخسارة للمبيعات]]+YTDSummary[[#This Row],[معدل الربح/الخسارة للشحن]],"") -> 224.6
A6: اتجاه المبيعات الشهرية: | H6: مارس | I6: =MarchSales[[#Totals],[معدل الربح/الخسارة للمبيعات]] -> 0 | J6: =MarchSales[[#Totals],[معدل الربح/الخسارة للشحن]] -> 0 | K6: =IF(AND(YTDSummary[[#This Row],[معدل الربح/الخسارة للمبيعات]]<>"",YTDSummary[[#This Row],[معدل الربح/الخسارة للشحن]]<>""),YTDSummary[[#This Row],[معدل الربح/الخسارة للمبيعات]]+YTDSummary[[#This Row],[معدل الربح/الخسارة للشحن]],"") -> 0
H7: أبريل | I7: =AprilSales[[#Totals],[معدل الربح/الخسارة للمبيعات]] -> 0 | J7: =AprilSales[[#Totals],[معدل الربح/الخسارة للشحن]] -> 0 | K7: =IF(AND(YTDSummary[[#This Row],[معدل الربح/الخسارة للمبيعات]]<>"",YTDSummary[[#This Row],[معدل الربح/الخسارة للشحن]]<>""),YTDSummary[[#This Row],[معدل الربح/الخسارة للمبيعات]]+YTDSummary[[#This Row],[معدل الربح/الخسارة للشحن]],"") -> 0
H8: مايو | I8: =MaySales[[#Totals],[معدل الربح/الخسارة للمبيعات]] -> 0 | J8: =MaySales[[#Totals],[معدل الربح/الخسارة للشحن]] -> 0 | K8: =IF(AND(YTDSummary[[#This Row],[معدل الربح/الخسارة للمبيعات]]<>"",YTDSummary[[#This Row],[معدل الربح/الخسارة للشحن]]<>""),YTDSummary[[#This Row],[معدل الربح/الخسارة للمبيعات]]+YTDSummary[[#This Row],[معدل الربح/الخسارة للشحن]],"") -> 0
H9: يونيو | I9: =JuneSales[[#Totals],[معدل الربح/الخسارة للمبيعات]] -> 0 | J9: =JuneSales[[#Totals],[معدل الربح/الخسارة للشحن]] -> 0 | K9: =IF(AND(YTDSummary[[#This Row],[معدل الربح/الخسارة للمبيعات]]<>"",YTDSummary[[#This Row],[معدل الربح/الخسارة للشحن]]<>""),YTDSummary[[#This Row],[معدل الربح/الخسارة للمبيعات]]+YTDSummary[[#This Row],[معدل الربح/الخسارة للشحن]],"") -> 0
H10: يوليو | I10: =JulySales[[#Totals],[معدل الربح/الخسارة للمبيعات]] -> 0 | J10: =JulySales[[#Totals],[معدل الربح/الخسارة للشحن]] -> 0 | K10: =IF(AND(YTDSummary[[#This Row],[معدل الربح/الخسارة للمبيعات]]<>"",YTDSummary[[#This Row],[معدل الربح/الخسارة للشحن]]<>""),YTDSummary[[#This Row],[معدل الربح/الخسارة للمبيعات]]+YTDSummary[[#This Row],[معدل الربح/الخسارة للشحن]],"") -> 0
H11: أغسطس | I11: =AugustSales[[#Totals],[معدل الربح/الخسارة للمبيعات]] -> 0 | J11: =AugustSales[[#Totals],[معدل الربح/الخسارة للشحن]] -> 0 | K11: =IF(AND(YTDSummary[[#This Row],[معدل الربح/الخسارة للمبيعات]]<>"",YTDSummary[[#This Row],[معدل الربح/الخسارة للشحن]]<>""),YTDSummary[[#This Row],[معدل الربح/الخسارة للمبيعات]]+YTDSummary[[#This Row],[معدل الربح/الخسارة للشحن]],"") -> 0
H12: سبتمبر | I12: =SeptemberSales[[#Totals],[معدل الربح/الخسارة للمبيعات]] -> 0 | J12: =SeptemberSales[[#Totals],[معدل الربح/الخسارة للشحن]] -> 0 | K12: =IF(AND(YTDSummary[[#This Row],[معدل الربح/الخسارة للمبيعات]]<>"",YTDSummary[[#This Row],[معدل الربح/الخسارة للشحن]]<>""),YTDSummary[[#This Row],[معدل الربح/الخسارة للمبيعات]]+YTDSummary[[#This Row],[معدل الربح/الخسارة للشحن]],"") -> 0
H13: أكتوبر | I13: =OctoberSales[[#Totals],[معدل الربح/الخسارة للمبيعات]] -> 0 | J13: =OctoberSales[[#Totals],[معدل الربح/الخسارة للشحن]] -> 0 | K13: =IF(AND(YTDSummary[[#This Row],[معدل الربح/الخسارة للمبيعات]]<>"",YTDSummary[[#This Row],[معدل الربح/الخسارة للشحن]]<>""),YTDSummary[[#This Row],[معدل الربح/الخسارة للمبيعات]]+YTDSummary[[#This Row],[معدل الربح/الخسارة للشحن]],"") -> 0
H14: نوفمبر | I14: =NovemberSales[[#Totals],[معدل الربح/الخسارة للمبيعات]] -> 0 | J14: =NovemberSales[[#Totals],[معدل الربح/الخسارة للشحن]] -> 0 | K14: =IF(AND(YTDSummary[[#This Row],[معدل الربح/الخسارة للمبيعات]]<>"",YTDSummary[[#This Row],[معدل الربح/الخسارة للشحن]]<>""),YTDSummary[[#This Row],[معدل الربح/الخسارة للمبيعات]]+YTDSummary[[#This Row],[معدل الربح/الخسارة للشحن]],"") -> 0
H15: ديسمبر | I15: =DecemberSales[[#Totals],[معدل الربح/الخسارة للمبيعات]] -> 0 | J15: =DecemberSales[[#Totals],[معدل الربح/الخسارة للشحن]] -> 0 | K15: =IF(AND(YTDSummary[[#This Row],[معدل الربح/الخسارة للمبيعات]]<>"",YTDSummary[[#This Row],[معدل الربح/الخسارة للشحن]]<>""),YTDSummary[[#This Row],[معدل الربح/الخسارة للمبيعات]]+YTDSummary[[#This Row],[معدل الربح/الخسارة للشحن]],"") -> 0
H16: الإجماليات | I16: =SUBTOTAL(109,YTDSummary[معدل الربح/الخسارة للمبيعات]) -> 291.8 | J16: =SUBTOTAL(109,YTDSummary[معدل الربح/الخسارة للشحن]) -> 21.8 | K16: =SUBTOTAL(109,YTDSummary[إجمالي الربح/الخسارة]) -> 313.6
